bitfinex-derivatives/quotes_SOLF0:USTF0_20241012
["timestamp","ask_amount","ask_price","bid_price","bid_amount"]
[1728728268393,8.44,145.92,145.87,11.8685]
[1728728268596,0.12502,145.97,145.89,8.44]
[1728728268597,3.4276,145.91,145.89,8.44]
[1728728269800,8.44,145.93,145.89,8.44]
[1728728270001,3.4273,145.93,145.89,11.8679]
[1728728270200,8.44,145.94,145.89,11.8679]
[1728728270898,8.44,145.94,145.9,5.04726657]
[1728728271102,8.44,145.94,145.91,5.04726657]
[1728728271399,3.4271,145.93,145.92,5.04726657]
[1728728272404,88.54902128,145.95,145.92,5.04726657]
[1728728272607,0.12502,145.97,145.93,5.04557702]
[1728728272805,0.12502,145.97,145.94,13.48557702]
[1728728272999,0.12502,145.97,145.95,5.04557702]
[1728728273309,0.12502,145.97,145.94,8.44]
[1728728273513,0.12502,145.97,145.96,5.04264601]
[1728728275705,3.55122,145.97,145.96,5.04264601]
[1728728276010,0.12502,145.97,145.96,5.04264601]
[1728728276715,0.12502,145.97,145.94,15.21941995]
[1728728277013,0.12502,145.97,145.95,5.03951088]
[1728728277213,0.12502,145.97,145.96,5.03953092]
[1728728278711,8.56502,145.97,145.96,5.03953092]
[1728728278904,11.99122,145.97,145.96,5.03953092]
[1728728281622,0.12502,145.97,145.96,5.03953092]
[1728728283422,3.55122,145.97,145.96,5.03953092]
[1728728285119,0.12502,145.97,145.96,5.03953092]
[1728728286219,0.12502,145.97,145.94,6.77931995]
[1728728286420,0.12502,145.97,145.95,5.03776177]
[1728728286617,0.12502,145.97,145.95,3.4266]
[1728728286818,0.12502,145.97,145.96,5.03745987]
[1728728288019,8.56502,145.97,145.96,5.03745987]
[1728728288224,11.99122,145.97,145.96,5.03745987]
[1728728289828,11.99122,145.97,145.95,3.43850873]
[1728728290325,11.99122,145.97,145.96,5.03520695]
[1728728290521,3.55122,145.97,145.96,5.03520695]
[1728728291622,0.12502,145.97,145.96,5.03520695]
[1728728293317,0.12502,145.97,145.95,3.44731317]
[1728728293517,0.12502,145.97,145.96,5.03334589]
[1728728297026,0.12502,145.97,145.95,3.44731317]
[1728728297232,0.12502,145.97,145.96,5.03204738]
[1728728297633,0.12502,145.97,145.95,6.87391317]
[1728728297934,0.12502,145.97,145.96,5.03161014]
[1728728300732,0.12502,145.97,145.96,5.03024969]
[1728728303142,0.12502,145.97,145.96,8.45664969]
[1728728303841,0.12502,145.97,145.96,5.03024969]
[1728728304841,0.12502,145.97,145.96,8.45664969]
[1728728306736,0.12502,145.97,145.96,8.45342149]
[1728728307843,0.12502,145.97,145.96,3.4264]
[1728728308245,0.12502,145.97,145.96,8.4529979]
[1728728313347,0.12502,145.97,145.96,16.8929979]
[1728728317650,0.12502,145.97,145.96,8.4529979]
[1728728317850,0.12502,145.97,145.96,16.8929979]
[1728728318151,0.12502,145.97,145.96,16.88416331]
[1728728320157,0.12502,145.97,145.96,11.8664]
[1728728321856,0.12502,145.97,145.96,16.88306248]
[1728728322154,0.12502,145.97,145.96,11.8664]
[1728728322545,0.12502,145.97,145.96,16.88322431]
[1728728326458,0.12518,145.99,145.98,3.4259]
[1728728326652,0.12518,145.99,145.98,16.88272431]
[1728728329661,0.12518,145.99,145.98,8.44272431]
[1728728329866,0.12518,145.99,145.98,16.88272431]
[1728728330064,0.12518,145.99,145.98,11.8659]
[1728728330261,0.12518,145.99,145.98,16.88250984]
[1728728330568,0.12518,145.99,145.98,16.88324871]
[1728728333372,0.12518,145.99,145.98,11.8659]
[1728728333675,0.12518,145.99,145.98,16.88498355]
[1728728336682,0.12518,145.99,145.98,8.44498355]
[1728728336875,0.12518,145.99,145.98,11.8659]
[1728728337175,0.12518,145.99,145.98,16.88836239]
[1728728337575,0.12518,145.99,145.98,5.02246239]
[1728728337780,0.12518,145.99,145.98,13.46246239]
[1728728338276,0.12518,145.99,145.98,16.90869944]
[1728728340272,0.12518,145.99,145.98,11.88623705]
[1728728340478,0.12518,145.99,145.98,16.91245317]
[1728728340670,0.12518,145.99,145.98,11.88623705]
[1728728340873,0.12518,145.99,145.98,16.91394113]
[1728728346784,0.12518,145.99,145.98,11.88623705]
[1728728346985,0.12518,145.99,145.98,16.91579412]
[1728728349484,0.12502,146.03,145.98,16.91579412]
[1728728349689,0.12502,146.03,146.02,8.44]
[1728728349888,0.12502,146.03,146.02,13.46955707]
[1728728350586,0.12502,146.03,146.02,16.89969625]
[1728728350884,0.12502,146.03,146.02,11.87242883]
[1728728351089,0.12502,146.03,146.02,16.89969625]
[1728728353992,0.12502,146.03,146.02,11.87242883]
[1728728354193,0.12502,146.03,146.02,8.45992485]
[1728728354791,0.12502,146.03,146.02,16.89992485]
[1728728362999,3.4236,146.08,146.02,13.46749602]
[1728728363201,3.4236,146.08,146.07,8.44]
[1728728367103,0.12502,146.09,146.07,8.44]
[1728728367300,3.54842,146.09,146.08,8.44]
[1728728370796,0.12502,146.09,146.08,8.44]
[1728728377202,3.423,146.11,146.08,8.44]
[1728728377408,0.12502,146.15,146.06,3.43546956]
[1728728377603,3.4227,146.12,146.11,8.44]
[1728728378311,9.96882,146.15,146.04,4.0941]
[1728728378505,0.12502,146.15,146.12,8.44]
[1728728378807,0.12502,146.15,146.13,8.44]
[1728728379198,3.4222,146.14,146.13,8.44]
[1728728380511,0.12502,146.15,146.12,8.44]
[1728728381410,0.12502,146.15,146.11,8.44]
[1728728381810,3.4227,146.12,146.11,8.44]
[1728728382508,3.4227,146.12,146.09,3.35715716]
[1728728382711,3.4227,146.12,146.11,8.44]
[1728728384312,0.12502,146.15,146.09,3.38351868]
[1728728384531,0.12502,146.15,146.11,8.44]
[1728728385617,3.4227,146.12,146.11,8.44]
[1728728391214,8.56502,146.15,146.11,8.44]
[1728728391418,3.4227,146.12,146.11,8.44]
[1728728400329,0.12502,146.15,146.11,8.44]
[1728728400521,3.4226,146.13,146.12,8.44]
[1728728401325,3.4228,146.12,146.11,8.44]
[1728728401629,3.4228,146.12,146.04,4.0941]
[1728728401925,3.4228,146.12,146.1,8.44]
[1728728406430,3.4228,146.12,146.11,8.44]
[1728728406931,3.4222,146.14,146.11,8.44]
[1728728407138,0.12502,146.15,146.13,8.44]
[1728728407635,3.4224,146.14,146.13,8.44]
[1728728408742,3.4224,146.14,146.12,8.44]
[1728728410339,3.4226,146.13,146.12,8.44]
[1728728411843,0.12502,146.15,146.12,8.44]
[1728728412049,3.4222,146.14,146.13,8.44]
[1728728413438,3.54712,146.15,146.13,8.44]
[1728728414252,3.4222,146.14,146.13,8.44]
[1728728418649,3.54702,146.15,146.13,8.44]
[1728728422153,3.54702,146.15,146.12,11.87395253]
[1728728422453,3.54702,146.15,146.12,8.44]
[1728728423048,3.54702,146.15,146.12,11.8651596]
[1728728424545,0.12502,146.15,146.12,11.8651596]
[1728728424746,3.4222,146.14,146.12,11.8651596]
[1728728429653,3.4222,146.14,146.13,5.01422496]
[1728728430254,3.4222,146.14,146.12,11.8651596]
[1728728430458,3.4222,146.14,146.13,5.01559536]
[1728728431056,3.4229,146.11,146.08,4.0117]
[1728728431251,3.4229,146.11,146.1,8.44]
[1728728431651,8.56502,146.15,146.1,5.01730303]
[1728728431953,8.44,146.14,146.09,8.44]
[1728728432250,3.423,146.11,146.1,5.01936513]
[1728728432853,11.863,146.11,146.1,5.01936513]
[1728728433055,3.4234,146.09,146.07,8.44]
[1728728433253,3.4234,146.09,146.08,5.02193484]
[1728728434253,11.8634,146.09,146.08,5.02193484]
[1728728434456,8.44,146.09,146.04,4.0461]
[1728728434656,8.44,146.08,146.05,5.0268354]
[1728728434959,8.44,146.08,146.06,5.0268354]
[1728728435158,8.44,146.08,146.04,2.74]
[1728728435559,8.44,146.08,146.05,5.02735147]
[1728728435758,8.44,146.06,146.03,0.12502]
[1728728436056,8.44,146.06,146.04,5.0277418]
[1728728436261,8.44,146.06,146.03,0.12502]
[1728728436562,8.44,146.06,146.04,5.02707073]
[1728728436861,8.44,146.06,146.03,0.12502]
[1728728437060,8.44,146.06,146.04,5.02708087]
[1728728437263,8.44,146.06,146.03,0.12502]
[1728728437561,3.4244,146.05,146.04,5.02625929]
[1728728438859,11.8644,146.05,146.04,5.02625929]
[1728728439660,3.4245,146.04,146.03,0.12502]
[1728728439863,3.4245,146.04,146.03,5.15137046]
[1728728440564,3.4245,146.04,146.03,0.12502]
[1728728444767,3.4244,146.05,146.03,0.12502]
[1728728446966,3.4245,146.04,146.03,0.12502]
[1728728449268,3.4244,146.05,146.03,0.12502]
[1728728450168,3.424,146.07,146.04,8.44]
[1728728450368,8.44,146.08,146.04,8.44]
[1728728450967,3.4241,146.06,146.04,8.44]
[1728728452370,3.4241,146.06,146.03,8.56502]
[1728728453469,83.373597,146.09,146.04,8.44]
[1728728453669,8.44,146.1,146.05,5.01214866]
[1728728453870,8.44,146.1,146.04,8.44]
[1728728454173,3.424,146.07,146.04,8.44]
[1728728454565,3.424,146.07,146.03,0.12502]
[1728728454766,3.424,146.07,146.04,8.44]
[1728728456267,3.4239,146.07,146.03,0.12502]
[1728728456474,3.4239,146.07,146.04,13.45264471]
[1728728456773,3.4239,146.07,146.04,8.44]
[1728728459573,3.4241,146.06,146.04,8.44]
[1728728460768,3.4244,146.05,146.03,0.12502]
[1728728461075,8.44,146.06,146.03,0.12502]
[1728728461573,3.4244,146.05,146.03,0.12502]
[1728728465368,3.4241,146.06,146.03,0.12502]
[1728728465563,8.44,146.07,146.03,0.12502]
[1728728466368,3.4245,146.05,146.03,0.12502]
[1728728466974,8.44,146.07,146.03,0.12502]
[1728728467167,3.4245,146.04,146.03,0.12502]
[1728728475883,3.40112961,146.09,146.03,8.56502]
[1728728476083,4.2251,146.14,146.05,8.44]
[1728728476282,8.44,146.1,146.05,8.44]
[1728728476675,3.4241,146.06,146.05,8.44]
[1728728480575,4.2251,146.14,146.05,8.44]
[1728728480781,3.4239,146.07,146.05,8.44]
[1728728481281,3.4245,146.04,146.03,0.12502]
[1728728482580,3.4243,146.05,146.03,0.12502]
[1728728483088,3.4243,146.05,146.03,8.56502]
[1728728484084,3.4238,146.08,146.04,8.44]
[1728728484279,8.44,146.1,146.05,8.44]
[1728728484775,3.4241,146.06,146.05,8.44]
[1728728485687,3.4241,146.06,146.03,8.56502]
[1728728493402,3.4241,146.06,146.04,5.01706584]
[1728728493606,3.4241,146.06,146.03,8.56502]
[1728728493804,3.4241,146.06,146.04,5.01706584]
[1728728494098,3.4241,146.06,146.03,8.56502]
[1728728494295,3.4241,146.06,146.04,5.01841345]
[1728728494494,3.4241,146.06,146.03,8.56502]
[1728728494698,3.4241,146.06,146.04,5.01892264]
[1728728494897,3.4241,146.06,146.03,8.56502]
[1728728495201,3.4241,146.06,146.04,5.01892264]
[1728728495400,3.4241,146.06,146.03,8.56502]
[1728728495601,3.4243,146.05,146.04,5.0206053]
[1728728497202,3.4243,146.05,146.04,5.02227992]
[1728728499008,3.4243,146.05,146.03,8.56502]
[1728728499198,3.4243,146.05,146.04,5.0268491]
[1728728507216,8.44,146.07,146.03,0.12502]
[1728728507409,3.4245,146.04,146.03,0.12502]
[1728728507811,3.4245,146.04,146.03,5.16403455]
[1728728509606,3.4245,146.04,146.03,0.12502]
[1728728509814,3.4245,146.04,146.03,5.16490137]
[1728728510618,3.4245,146.04,146.03,0.12502]
[1728728510812,3.4245,146.04,146.03,5.16496515]
[1728728511606,3.4245,146.04,146.03,13.60496515]
[1728728514019,3.4245,146.04,146.03,8.56502]
[1728728514323,3.4245,146.04,146.03,13.60486314]
[1728728517316,3.4245,146.04,146.03,13.60478264]
[1728728517717,3.4245,146.04,146.03,8.56502]
[1728728517917,3.4245,146.04,146.03,13.60475836]
[1728728520327,3.4245,146.04,146.03,5.16475836]
[1728728520621,3.4245,146.04,146.03,0.12502]
[1728728520826,3.4245,146.04,146.03,5.16487088]
[1728728525232,11.8645,146.04,146.03,5.16487088]
[1728728527236,11.8645,146.04,146.03,5.16461372]
[1728728527530,3.4245,146.04,146.03,5.16461372]
[1728728527736,3.4245,146.04,146.03,5.16458864]
[1728728527926,3.4245,146.04,146.03,0.12502]
[1728728528127,3.4245,146.04,146.03,5.16460862]
[1728728531037,3.4245,146.04,146.03,0.12502]
[1728728531232,3.4245,146.04,146.03,5.16364254]
[1728728534436,3.4245,146.04,146.03,0.12502]
[1728728534635,3.4245,146.04,146.03,5.16337303]
[1728728537839,3.4245,146.04,146.03,0.12502]
[1728728538149,3.4245,146.04,146.03,5.16285583]
[1728728541544,3.4245,146.04,146.03,5.16178804]
[1728728542340,1.3283,146.08,146.03,5.16178804]
[1728728542646,8.44,146.08,146.04,5.03676804]
[1728728542845,8.44,146.08,146.05,5.03676804]
[1728728543044,3.4243,146.05,146.03,8.56502]
[1728728543244,3.4243,146.05,146.04,5.03640337]
[1728728544936,3.4242,146.06,146.03,8.56502]
[1728728545137,3.4242,146.06,146.04,5.03633827]
[1728728545341,3.4242,146.06,146.05,5.03633827]
[1728728548455,3.4243,146.05,146.03,0.12502]
[1728728548647,3.4243,146.05,146.04,5.03674508]
[1728728549653,3.4243,146.05,146.03,0.12502]
[1728728549854,3.4243,146.05,146.04,5.03682157]
[1728728551950,3.4243,146.05,146.03,0.12502]
[1728728552148,3.4243,146.05,146.04,5.03694771]
[1728728554758,3.4243,146.05,146.03,0.12502]
[1728728555056,3.4243,146.05,146.04,5.03721771]
[1728728558954,3.4243,146.05,146.03,0.12502]
[1728728559362,3.4243,146.05,146.04,5.03757166]
[1728728562559,3.4243,146.05,146.03,0.12502]
[1728728562761,3.4243,146.05,146.04,5.03820149]
[1728728563369,11.8643,146.05,146.04,5.03820149]
[1728728568768,3.4243,146.05,146.04,5.03820149]
[1728728570473,3.4243,146.05,146.04,5.04077781]
[1728728574073,3.4243,146.05,146.03,0.12502]
[1728728574575,3.4243,146.05,146.04,5.04135555]
[1728728580876,3.4243,146.05,146.03,0.12502]
[1728728581267,3.4243,146.05,146.04,5.0403403]
[1728728584177,3.4243,146.05,146.04,5.04006375]
[1728728587579,3.4245,146.04,146.03,0.12502]
[1728728587784,3.4245,146.04,146.03,5.16690728]
[1728728588387,3.4245,146.04,146.03,0.12502]
[1728728588683,3.4245,146.04,146.03,5.1669549]
[1728728591483,3.4245,146.04,146.03,0.12502]
[1728728591990,3.4245,146.04,146.03,5.16727078]
[1728728594589,3.4245,146.04,146.03,0.12502]
[1728728594888,3.4245,146.04,146.03,5.16727406]
[1728728598189,3.4245,146.04,146.03,0.12502]
[1728728598391,3.4245,146.04,146.03,5.16745545]
[1728728602089,3.4245,146.04,146.03,0.12502]
[1728728602285,3.4245,146.04,146.03,5.16779536]
[1728728605388,3.4245,146.04,146.03,0.12502]
[1728728605589,3.4245,146.04,146.03,5.16840487]
[1728728607301,3.4245,146.04,146.03,0.12502]
[1728728607696,3.4245,146.04,146.03,5.16893624]
[1728728608699,87.33424393,146.09,146.03,5.16893624]
[1728728608894,8.44,146.08,146.04,5.04391624]
[1728728609095,8.44,146.08,146.05,5.04391624]
[1728728609292,8.44,146.08,146.03,8.56502]
[1728728609597,8.44,146.08,146.04,5.04387237]
[1728728609895,8.44,146.08,146.05,5.04492946]
[1728728610090,8.44,146.08,146.06,5.04492946]
[1728728610091,3.4238,146.07,146.06,5.04492946]
[1728728612895,3.4242,146.06,146.03,8.56502]
[1728728613095,95.77424393,146.09,146.05,8.44]
[1728728613290,95.77424393,146.09,146.06,5.04475816]
[1728728613698,3.4236,146.08,146.07,5.04475816]
[1728728615701,4.2691,146.14,146.07,5.04475816]
[1728728615910,3.4235,146.09,146.08,5.04475816]
[1728728616103,8.44,146.12,146.08,5.04475816]
[1728728616308,8.44,146.12,146.09,5.04475816]
[1728728616504,3.4231,146.11,146.06,8.44]
[1728728616705,3.4231,146.11,146.07,5.03792432]
[1728728617011,8.44,146.12,146.08,5.03792432]
[1728728617211,3.4233,146.1,146.09,5.03792432]
[1728728620203,3.4233,146.1,146.06,8.44]
[1728728620404,3.4233,146.1,146.09,5.03198495]
[1728728622512,3.4233,146.1,146.06,8.44]
[1728728622700,3.4233,146.1,146.07,5.02915384]
[1728728622904,3.4233,146.1,146.08,5.02915384]
[1728728623111,3.4233,146.1,146.06,8.44]
[1728728623312,3.4233,146.1,146.07,5.02852363]
[1728728623608,3.4233,146.1,146.08,5.02852363]
[1728728623809,3.4233,146.1,146.06,8.44]
[1728728624002,3.4233,146.1,146.07,5.02844819]
[1728728624207,3.4233,146.1,146.06,8.44]
[1728728624411,3.4233,146.1,146.07,5.02844819]
[1728728624601,3.4233,146.1,146.08,5.02844819]
[1728728624805,3.4233,146.1,146.06,8.44]
[1728728625011,3.4232,146.1,146.07,5.02776824]
[1728728625209,3.4232,146.1,146.08,5.02776824]
[1728728625514,3.4232,146.1,146.06,8.44]
[1728728625712,3.4232,146.1,146.07,5.02689102]
[1728728625909,3.4232,146.1,146.06,8.44]
[1728728625910,3.4234,146.09,146.08,5.02689102]
[1728728627206,3.4234,146.09,146.06,8.44]
[1728728627411,3.4234,146.09,146.08,5.02662498]
[1728728629117,2.8642,146.14,146.08,5.02662498]
[1728728629315,3.4231,146.1,146.07,8.44]
[1728728629617,3.4231,146.1,146.08,5.02442355]
[1728728629817,3.4231,146.1,146.07,8.44]
[1728728630012,3.4231,146.1,146.08,5.02427909]
[1728728630213,3.4231,146.1,146.07,8.44]
[1728728630411,3.4231,146.1,146.08,5.02359049]
[1728728630611,3.4231,146.1,146.07,8.44]
[1728728630809,3.4231,146.1,146.08,5.02294462]
[1728728631013,3.4231,146.1,146.07,8.44]
[1728728631014,3.4231,146.1,146.09,5.02294462]
[1728728633216,3.423,146.11,146.09,5.02294462]
[1728728633418,3.423,146.11,146.07,8.44]
[1728728633610,3.423,146.11,146.08,5.01889889]
[1728728633920,3.423,146.11,146.09,5.01889889]
[1728728634119,3.423,146.11,146.07,8.44]
[1728728634315,3.423,146.11,146.08,5.01809999]
[1728728634521,1.4352,146.14,146.09,5.01809999]
[1728728634716,3.4227,146.12,146.08,11.8636]
[1728728635021,4.86058735,146.17,146.09,5.01748766]
[1728728635219,8.44,146.14,146.1,13.45748766]
[1728728635411,3.4226,146.13,146.1,8.44]
[1728728635818,2.7369,146.18,146.1,11.86690931]
[1728728636018,3.4222,146.14,146.11,13.45481778]
[1728728636214,3.47013512,146.2,146.11,8.44]
[1728728636516,3.4218,146.16,146.12,8.44]
[1728728636720,3.47013512,146.2,146.12,8.44]
[1728728637420,3.4219,146.16,146.12,8.44]
[1728728639616,3.54702,146.15,146.12,8.44]
[1728728640216,0.12502,146.15,146.12,8.44]
[1728728640416,3.4222,146.14,146.12,8.44]
[1728728640924,0.12502,146.15,146.1,3.42690931]
[1728728641126,0.12502,146.15,146.11,13.44640222]
[1728728641426,8.44,146.13,146.09,8.44]
[1728728641633,3.4228,146.12,146.1,5.00586012]
[1728728641924,3.4228,146.12,146.11,3.42389847]
[1728728642119,3.4228,146.12,146.09,8.44]
[1728728642319,3.4229,146.11,146.1,5.00588364]
[1728728642714,3.4229,146.11,146.1,8.46780218]
[1728728643119,3.4229,146.11,146.1,3.46191854]
[1728728643322,3.4229,146.11,146.1,8.4670045]
[1728728643527,3.4229,146.11,146.09,8.44]
[1728728643929,3.4229,146.11,146.1,5.00421977]
[1728728644122,3.4229,146.11,146.1,13.44421977]
[1728728644318,3.4227,146.12,146.1,16.9472212]
[1728728644520,0.12502,146.15,146.11,13.44421977]
[1728728644717,0.12502,146.15,146.1,11.94300143]
[1728728644921,3.4226,146.13,146.1,8.44]
[1728728645315,3.4226,146.13,146.11,5.00209613]
[1728728645520,3.4226,146.13,146.11,3.34243579]
[1728728648029,3.4226,146.13,146.1,11.8631]
[1728728648230,3.4226,146.13,146.11,4.99826846]
[1728728648528,3.4226,146.13,146.12,3.39447412]
[1728728648925,3.4226,146.13,146.1,11.8631]
[1728728649428,3.4226,146.13,146.1,15.2175183]
[1728728650323,0.12502,146.15,146.12,8.44]
[1728728650524,0.12502,146.15,146.14,11.8622]
[1728728651426,0.12502,146.15,146.14,15.25188112]
[1728728652024,0.12502,146.15,146.14,20.24284802]
[1728728652427,0.12502,146.15,146.14,15.25188112]
[1728728652827,0.12502,146.15,146.14,20.24035591]
[1728728653226,0.12502,146.15,146.14,15.25188112]
[1728728666539,0.12502,146.15,146.14,20.22650118]
[1728728667342,3.4213,146.18,146.15,3.4218]
[1728728667536,3.4213,146.18,146.17,8.44]
[1728728667747,3.4211,146.19,146.17,8.44]
[1728728667938,3.4211,146.19,146.18,8.44]
[1728728671640,0.12502,146.21,146.18,8.44]
[1728728671846,3.4208,146.2,146.18,8.44]
[1728728674746,3.4208,146.2,146.17,11.90847318]
[1728728681958,3.4208,146.2,146.19,8.44]
[1728728686165,0.12502,146.21,146.19,8.44]
[1728728686366,3.4208,146.2,146.19,8.44]
[1728728693974,3.54562,146.21,146.19,8.44]
[1728728695072,3.54562,146.21,146.17,6.88997318]
[1728728695282,3.54562,146.21,146.19,8.44]
[1728728696477,0.12502,146.21,146.19,8.44]
[1728728696669,3.4208,146.2,146.19,8.44]
[1728728698274,3.4208,146.2,146.19,13.43193634]
[1728728699466,3.54572,146.21,146.19,13.43193634]
[1728728699670,3.54572,146.21,146.19,8.44]
[1728728700675,3.54572,146.21,146.17,3.46847318]
[1728728700882,3.54572,146.21,146.18,13.43406429]
[1728728701181,0.12502,146.21,146.19,4.99406429]
[1728728701371,3.4208,146.2,146.18,8.44]
[1728728701567,3.4208,146.2,146.19,4.99505661]
[1728728702380,3.4208,146.2,146.19,4.99633233]
[1728728706173,0.12502,146.21,146.19,4.99633233]
[1728728706473,3.54562,146.21,146.2,4.99633233]
[1728728707376,3.54562,146.21,146.2,5.0012229]
[1728728707778,3.54562,146.21,146.19,8.44]
[1728728707978,3.54562,146.21,146.2,5.0012229]
[1728728714096,3.54562,146.21,146.18,11.8841549]
[1728728714289,3.54562,146.21,146.2,5.00511996]
[1728728717997,3.54562,146.21,146.2,5.00987925]
[1728728720684,11.98562,146.21,146.2,5.00987925]
[1728728720992,8.56502,146.21,146.09,8.56502]
[1728728721195,8.44,146.13,146.1,3.38987894]
[1728728721392,11.8626,146.13,146.1,3.38987894]
[1728728721598,11.8626,146.13,146.09,8.56502]
[1728728722103,3.4228,146.12,146.09,0.12502]
[1728728722796,3.4228,146.12,146.09,3.58778116]
[1728728723187,3.4228,146.12,146.09,15.45108116]
[1728728723396,11.8625,146.13,146.09,15.45108116]
[1728728723995,3.4225,146.13,146.11,8.44]
[1728728724306,71.25977509,146.19,146.11,8.44]
[1728728724307,3.4223,146.14,146.11,8.44]
[1728728729803,3.4218,146.16,146.12,11.8625]
[1728728730005,8.44,146.17,146.12,11.8625]
[1728728730612,3.4217,146.16,146.12,11.8625]
[1728728733609,3.4217,146.16,146.14,8.44]
[1728728734511,0.12502,146.21,146.15,8.44]
[1728728734720,8.56502,146.21,146.16,8.44]
[1728728735009,3.4209,146.2,146.16,8.44]
[1728728735212,8.56502,146.21,146.16,8.44]
[1728728735606,3.4212,146.19,146.16,8.44]
[1728728736910,3.4213,146.18,146.16,8.44]
[1728728737114,8.44,146.18,146.11,2.6964]
[1728728737309,8.44,146.18,146.13,8.44]
[1728728737508,3.4218,146.16,146.13,8.44]
[1728728738211,3.4212,146.19,146.15,11.8618]
[1728728738411,3.4212,146.19,146.17,8.44]
[1728728739109,3.4212,146.19,146.15,3.4218]
[1728728739309,3.4213,146.18,146.16,8.44]
[1728728742410,3.4213,146.18,146.11,2.6964]
[1728728742411,8.44,146.2,146.15,8.44]
[1728728742815,0.12502,146.21,146.19,8.44]
[1728728743120,0.12502,146.21,146.17,3.49085123]
[1728728743315,0.12502,146.21,146.19,8.44]
[1728728743517,3.4209,146.2,146.19,8.44]
[1728728746914,3.4209,146.2,146.18,8.44]
[1728728748512,3.4209,146.2,146.17,3.46278753]
[1728728748714,0.12502,146.21,146.16,8.44]
[1728728749116,3.4209,146.2,146.17,3.34095676]
[1728728749321,0.12502,146.21,146.16,11.8617]
[1728728749921,3.4208,146.2,146.17,3.50073421]
[1728728750121,3.4208,146.2,146.16,11.8617]
[1728728750420,8.56502,146.21,146.16,8.44]
[1728728750714,8.56502,146.21,146.11,2.6964]
[1728728750919,8.56502,146.21,146.15,8.44]
[1728728751121,8.44,146.2,146.14,3.422]
[1728728751313,8.44,146.2,146.14,11.862]
[1728728752413,3.4217,146.17,146.14,11.862]
[1728728752817,8.44,146.2,146.15,8.44]
[1728728753018,3.4217,146.16,146.15,8.44]
[1728728757924,3.4217,146.16,146.12,3.4225]
[1728728758118,3.422,146.15,146.14,8.44]
[1728728761026,3.4218,146.16,146.14,8.44]
[1728728762322,3.4215,146.17,146.14,11.8622]
[1728728763524,3.4215,146.17,146.14,8.44]
[1728728765529,3.4215,146.17,146.15,8.44]
[1728728768825,8.44,146.17,146.11,6.1192]
[1728728769030,8.44,146.16,146.11,11.1364]
[1728728769426,3.4223,146.14,146.11,11.1364]
[1728728770426,3.4223,146.14,146.12,8.44]
[1728728771030,3.4223,146.14,146.13,8.44]
[1728728771235,3.422,146.15,146.13,8.44]
[1728728777339,3.422,146.15,146.12,11.8626]
[1728728791338,8.44,146.17,146.11,2.6964]
[1728728791539,8.44,146.12,146.08,8.44]
[1728728791745,8.44,146.12,146.09,0.12502]
[1728728791945,3.4231,146.11,146.09,0.12502]
[1728728792546,3.4231,146.1,146.09,0.12502]
[1728728795238,11.8631,146.1,146.09,0.12502]
[1728728806954,3.4231,146.1,146.09,0.12502]
[1728728807164,11.8631,146.1,146.09,0.12502]
[1728728811264,3.4231,146.1,146.09,0.12502]
[1728728811558,11.8631,146.1,146.09,0.12502]
[1728728823971,8.44,146.12,146.09,0.12502]
[1728728824366,8.44,146.11,146.09,0.12502]
[1728728827172,8.44,146.13,146.09,0.12502]
[1728728827370,8.44,146.13,146.09,4.21472]
[1728728828170,8.44,146.13,146.1,3.4229]
[1728728829371,11.8625,146.13,146.1,3.4229]
[1728728831466,11.8625,146.13,146.09,7.63802]